[Event "24th Mediterranean Flower 2024"]
[Site "Rijeka"]
[Date "2024.03.09"]
[Round "9.5"]
[White "Zagorac, Lara"]
[Black "Urh, Zala"]
[Result "1/2-1/2"]
[ECO "D77"]
[WhiteElo "1894"]
[BlackElo "2287"]
[Annotator "TA"]
[PlyCount "52"]
[EventDate "2024.03.04"]
[EventType "tourn"]
[EventCountry "CRO"]
[SourceTitle "playchess.com"]
[Source "ChessBase"]
[SourceQuality "1"]
[TimeControl "5400+30"]

{[%evp 15,52,23,39,6,10,-1,10,-52,-54,-57,-32,-24,-6,-7,-4,-4,-7,-6,0,0,0,0,-8,0,0,-4,-4,-10,0,0,0,0,0,0,0,0,0,0,0]} 1. Nf3 {[%emt 0:00:03]} Nf6 {[%emt 0:00:04]} 2. g3 {[%emt 0:00:08]} g6 {[%emt 0:00:17]} 3. Bg2 {[%emt 0:00:33]} Bg7 {[%emt 0:01:15]} 4. O-O {[%emt 0:00:09]} d5 {[%emt 0:00:30]} 5. d4 {[%emt 0:00:19]} O-O {[%emt 0:00:15]} 6. c4 {[%emt 0:00:22]} dxc4 {[%emt 0:00:30]} 7. Na3 {[%emt 0:07:42]} c3 {[%emt 0:00:42]} 8. bxc3 {[%emt 0:00:36]} c5 {[%emt 0:00:14]} 9. Nc2 {[%emt 0:01:05]} Nc6 {[%emt 0:02:33]} 10. Ba3 {[%emt 0:02:02]} Ne4 {[%emt 0:16:25]} 11. Bxc5 {[%emt 0:20:18]} (11. Qd3 $11) 11... Nxc5 $15 {[%emt 0:03:47]} 12. dxc5 {[%emt 0:00:23]} Qa5 {[%emt 0:02:54]} 13. Nfd4 {[%emt 0:06:50]} Qxc5 {[%emt 0:02:16]} 14. Nxc6 {[%emt 0:02:01] The position is equal.} bxc6 {[%emt 0:00:06]} 15. Nd4 {[%emt 0:00:56]} Rd8 {[%emt 0:25:21]} (15... Qxc3 16. Nxc6 Qf6 17. Rb1 $14) 16. Qa4 {[%emt 0:09:28]} Bxd4 {[%emt 0:01:23]} ({Reject} 16... Qxc3 $6 17. Qxc6 (17. Nxc6 Bd7 $16) 17... Qxc6 (17... Qxd4 18. Qxa8 $16) 18. Nxc6 $16) 17. cxd4 {[%emt 0:00:29]} Rxd4 {[%emt 0:00:30]} 18. Qxc6 {[%emt 0:00:35]} Qxc6 {[%emt 0:00:06]} 19. Bxc6 {[%emt 0:00:07]} Rb8 {[%emt 0:00:04]} 20. Rfd1 {[%emt 0:03:19] Inhibits Rd2.} Rxd1+ {[%emt 0:05:08]} 21. Rxd1 $11 {[%emt 0:00:10][%mdl 4096] Endgame. KRB-KRB} Bh3 {[%emt 0:00:12]} 22. a4 {[%emt 0:04:40]} Rb2 {[%emt 0:03:24]} 23. Bb5 {[%emt 0:01:09]} Ra2 {[%emt 0:02:32]} 24. f3 {[%emt 0:02:27]} a6 {[%emt 0:00:59]} 25. Bxa6 {[%emt 0:00:44]} Rxa4 {[%emt 0:00:06]} 26. Bd3 {[%emt 0:00:17]} h5 {[%emt 0:04:07] Weighted Error Value: White=0.11 (very precise) /Black=0.05 (flawless) .  Mistake:       	White=1     	---        OK:         	White=7     	Black=6      Best:        	White=1     	Black=1} 1/2-1/2